{"text_format":"3","workbook":"xlsx","n_sheets":11,"sheets":["Худ.эст.к 6г ч3","Реч.разв.к 6г ч2","Реч.разв.к 6г ч1","Соц.ком. к 6г ч2","Физ.разв. к 6г ч2","Физ.разв. к 6г ч1","Соц.ком.к 6г ч1","Позн.разв. к 6г ч1","Позн.разв. к 6г ч2","Худ.эст.к 6г ч1","Худ.эст.к 6г ч2"],"read":"whole","date_system":"1900"}

{"sheet":"Худ.эст.к 6г ч3","index":0,"n_rows":44,"n_cols":13,"rows_kept":44,"merged":[[0,0,0,1],[0,4,0,6],[0,7,0,10],[1,0,1,3],[1,4,1,6],[1,7,1,11],[2,0,2,3],[3,0,3,1],[3,4,3,5],[3,6,3,8],[3,9,3,10],[4,0,4,1],[4,4,4,5],[4,6,4,8],[4,9,4,10],[5,0,10,0],[5,1,10,1],[5,4,5,11],[5,12,10,12],[6,4,6,11],[7,4,8,9],[7,10,8,11],[9,4,10,4],[9,5,10,5],[9,6,10,6],[9,7,10,7],[9,8,10,8],[9,9,10,9],[9,10,10,10],[9,11,10,11],[41,1,41,11],[43,1,43,12]]}
["Финальная диагностика",{"$nulls":3},"ГРУППА СТАРШЕГО ВОЗРАСТА (5-6 лет)",null,null,"Период проведения - окончание посещения группы старшего возраста"]
["Стартовая диагностика",{"$nulls":3},"ГРУППА ПОДГОТОВИТЕЛЬНОГО К ШКОЛЕ ВОЗРАСТА (6-7 лет)",null,null,"Период проведения - начало уч. года (сентябрь) или начало посещения группы подготовительного к школе возраста"]
["*- не диагностируется в данном возрасте"]
["Сформированность показателя",{"$nulls":3},"«2» показатель сформирован",null,"«1» показатель в стадии формирования",null,null,"«0» показатель не сформирован"]
["Средний уровень",{"$nulls":3},"1,8 - 2,0 норма-высокий",null,"1,0 - 1,7 норма - средний",null,null,"0,0 - 0,9 ниже нормы"]
[null,"Ф.И. ребенка",null,null,"ОБРАЗОВАТЕЛЬНАЯ ОБЛАСТЬ «ХУДОЖЕСТВЕННО-ЭСТЕТИЧЕСКОЕ РАЗВИТИЕ»",{"$nulls":7},"СРЕДНИЙ ПОКАЗАТЕЛЬ ПО РЕБЕНКУ"]
[{"$nulls":4},"Показатели возможных достижений (возрастные характеристики) к 6 годам"]
[{"$nulls":4},"Приобщение к искусству",{"$nulls":5},"Конструктивная деятельность"]
[]
[{"$nulls":4},"Ребенок умеет выделять, называть, группировать произведения по видам искусства: литература, музыка, изобразительное искусство, архитектура, театр, цирк","Ребенок имеет представление о видах изобразительного искусства: графика, декоративно-прикладное искусство, живопись, скульптура, архитектура, фотоискусство","Ребенок имеет представление о жанрах изобразительного искусства: натюрморт, пейзаж, портрет","Ребенок имеет представление о народном искусстве, фольклоре, музыке и художественных промыслах","Ребенок имеет представление о творческих профессиях: художник, композитор, музыкант, актер, артист балета","Ребенок имеет представление о культурно-досуговых местах: театр, музей, библиотека, выставка, кинотеатр, цирк и др.","Ребенок может провести анализ постройки (выделить основные части и характерные детали конструкций)","Ребенок может выполнить постройку по инструкции"]
[]
[1,{"$nulls":11},{"$f":"AVERAGE(E12:L12)","v":{"$error":"#DIV/0!"}}]
[2,{"$nulls":11},{"$error":"#DIV/0!"}]
[3,{"$nulls":11},{"$error":"#DIV/0!"}]
[4,{"$nulls":11},{"$error":"#DIV/0!"}]
[5,{"$nulls":11},{"$error":"#DIV/0!"}]
[6,{"$nulls":11},{"$error":"#DIV/0!"}]
[7,{"$nulls":11},{"$error":"#DIV/0!"}]
[8,{"$nulls":11},{"$error":"#DIV/0!"}]
[9,{"$nulls":11},{"$error":"#DIV/0!"}]
[10,{"$nulls":11},{"$error":"#DIV/0!"}]
[11,{"$nulls":11},{"$error":"#DIV/0!"}]
[12,{"$nulls":11},{"$error":"#DIV/0!"}]
[13,{"$nulls":11},{"$error":"#DIV/0!"}]
[14,{"$nulls":11},{"$error":"#DIV/0!"}]
[15,{"$nulls":11},{"$error":"#DIV/0!"}]
[16,{"$nulls":11},{"$error":"#DIV/0!"}]
[17,{"$nulls":11},{"$error":"#DIV/0!"}]
[18,{"$nulls":11},{"$error":"#DIV/0!"}]
[19,{"$nulls":11},{"$error":"#DIV/0!"}]
[20,{"$nulls":11},{"$error":"#DIV/0!"}]
[21,{"$nulls":11},{"$error":"#DIV/0!"}]
[22,{"$nulls":11},{"$error":"#DIV/0!"}]
[23,{"$nulls":11},{"$error":"#DIV/0!"}]
[24,{"$nulls":11},{"$error":"#DIV/0!"}]
[25,{"$nulls":11},{"$error":"#DIV/0!"}]
[26,{"$nulls":11},{"$error":"#DIV/0!"}]
[27,{"$nulls":11},{"$error":"#DIV/0!"}]
[28,{"$nulls":11},{"$error":"#DIV/0!"}]
[29,{"$nulls":11},{"$error":"#DIV/0!"}]
[30,{"$nulls":11},{"$error":"#DIV/0!"}]
[null,"СРЕДНИЙ ПОКАЗАТЕЛЬ ПО ГРУППЕ",{"$nulls":10},{"$f":"AVERAGE(M12:M41)","v":{"$error":"#DIV/0!"}}]
[null,"Ф.И.О, должность специалиста(ов)____________________________________________________________________________________________________________________________________________________________________________________________________________________________________"]
[null,"© Автор-составитель Кулекина И.А., СПБ, 2023"]

{"sheet":"Реч.разв.к 6г ч2","index":1,"n_rows":43,"n_cols":18,"rows_kept":43,"merged":[[0,0,0,1],[0,4,0,7],[0,8,0,10],[1,0,1,3],[1,4,1,7],[1,8,1,11],[2,0,2,3],[3,0,3,1],[3,5,3,6],[3,7,3,8],[4,0,4,1],[4,5,4,6],[4,7,4,8],[5,0,9,0],[5,1,9,1],[5,4,5,16],[5,17,9,17],[6,4,6,16],[7,5,7,10],[7,12,7,16],[8,4,9,4],[8,5,9,5],[8,6,9,6],[8,7,9,7],[8,8,9,8],[8,9,9,9],[8,10,9,10],[8,11,9,11],[8,12,9,12],[8,13,9,13],[8,14,9,14],[8,15,9,15],[8,16,9,16],[40,1,40,16],[41,1,41,17],[42,1,42,17]]}
["Финальная диагностика",{"$nulls":3},"ГРУППА СТАРШЕГО ВОЗРАСТА (5-6 лет)",{"$nulls":3},"Период проведения - окончание посещения группы старшего возраста"]
["Стартовая диагностика",{"$nulls":3},"ГРУППА ПОДГОТОВИТЕЛЬНОГО К ШКОЛЕ ВОЗРАСТА (6-7 лет)",{"$nulls":3},"Период проведения - начало уч. года (сентябрь) или начало посещения группы подготовительного к школе возраста"]
["*- не диагностируется в данном возрасте"]
["Сформированность показателя",{"$nulls":3},"«2» показатель сформирован","«1» показатель в стадии формирования",null,"«0» показатель не сформирован"]
["Средний уровень",{"$nulls":3},"1,8 - 2,0 норма-высокий","1,0 - 1,7 норма - средний",null,"0,0 - 0,9 ниже нормы"]
["№","Ф.И. ребенка",null,null,"ОБРАЗОВАТЕЛЬНАЯ ОБЛАСТЬ «РЕЧЕВОЕ  РАЗВИТИЕ»",{"$nulls":12},"СРЕДНИЙ ПОКАЗАТЕЛЬ ПО РЕБЕНКУ"]
[{"$nulls":4},"Показатели возможных достижений (возрастные характеристики) к 6 годам"]
[{"$nulls":4},"Звуковая культура речи","Связная речь",{"$nulls":5},"ЧХЛ","Подготовка к обучению грамоте"]
[{"$nulls":4},"Ребенок правильно произносит сонорные звуки: л-ль, р-рь","Ребенок пересказывает литературные произведения по ролям, по частям, правильно передавая идею и содержание","Ребенок пользуется прямой и косвенной речью","Ребенок составляет короткий описательный рассказ о предметах, объектах и явлениях природы, из личного опыта","Ребенок сочиняет сюжетные рассказы по картине, из личного опыта","Ребенок проявляет речевое творчество: придумывает продолжение и окончание к рассказу, рассказы по аналогии, по плану педагога, по модели","Ребенок владеет первичными приемами аргументации и доказательства","Ребенок проявляет избирательное отношение к произведениям определенной тематики и жанра","Ребенок понимает термины: слово: звук, буква, предложение, гласный звук, согласный звук","Ребенок может провести звуковой анализ слова, разделить на слоги двух-, трехслоговые слова; составляет схему слова","Ребенок различает гласные-согласные звуки","Ребенок определяет твердые-мягкие согласные","Ребенок составляет предложение по модели, определяет количество и последовательность слов в предложении"]
[]
[1,{"$nulls":16},{"$f":"AVERAGE(E11:Q11)","v":{"$error":"#DIV/0!"}}]
[2,{"$nulls":16},{"$error":"#DIV/0!"}]
[3,{"$nulls":16},{"$error":"#DIV/0!"}]
[4,{"$nulls":16},{"$error":"#DIV/0!"}]
[5,{"$nulls":16},{"$error":"#DIV/0!"}]
[6,{"$nulls":16},{"$error":"#DIV/0!"}]
[7,{"$nulls":16},{"$error":"#DIV/0!"}]
[8,{"$nulls":16},{"$error":"#DIV/0!"}]
[9,{"$nulls":16},{"$error":"#DIV/0!"}]
[10,{"$nulls":16},{"$error":"#DIV/0!"}]
[11,{"$nulls":16},{"$error":"#DIV/0!"}]
[12,{"$nulls":16},{"$error":"#DIV/0!"}]
[13,{"$nulls":16},{"$error":"#DIV/0!"}]
[14,{"$nulls":16},{"$error":"#DIV/0!"}]
[15,{"$nulls":16},{"$error":"#DIV/0!"}]
[16,{"$nulls":16},{"$error":"#DIV/0!"}]
[17,{"$nulls":16},{"$error":"#DIV/0!"}]
[18,{"$nulls":16},{"$error":"#DIV/0!"}]
[19,{"$nulls":16},{"$error":"#DIV/0!"}]
[20,{"$nulls":16},{"$error":"#DIV/0!"}]
[21,{"$nulls":16},{"$error":"#DIV/0!"}]
[22,{"$nulls":16},{"$error":"#DIV/0!"}]
[23,{"$nulls":16},{"$error":"#DIV/0!"}]
[24,{"$nulls":16},{"$error":"#DIV/0!"}]
[25,{"$nulls":16},{"$error":"#DIV/0!"}]
[26,{"$nulls":16},{"$error":"#DIV/0!"}]
[27,{"$nulls":16},{"$error":"#DIV/0!"}]
[28,{"$nulls":16},{"$error":"#DIV/0!"}]
[29,{"$nulls":16},{"$error":"#DIV/0!"}]
[30,{"$nulls":16},{"$error":"#DIV/0!"}]
[null,"СРЕДНИЙ ПОКАЗАТЕЛЬ ПО ГРУППЕ",{"$nulls":15},{"$f":"AVERAGE(R11:R40)","v":{"$error":"#DIV/0!"}}]
[null,"Ф.И.О, должность специалиста(ов)____________________________________________________________________________________________________________________________________________________________________________________________________________________________________"]
[null,"© Автор-составитель Кулекина И.А., СПБ, 2023"]

{"sheet":"Реч.разв.к 6г ч1","index":2,"n_rows":43,"n_cols":13,"rows_kept":43,"merged":[[0,0,0,1],[0,7,0,10],[1,0,1,3],[1,4,1,6],[1,7,1,10],[2,0,2,3],[3,0,3,1],[3,4,3,5],[3,6,3,7],[3,8,3,9],[4,0,4,1],[4,4,4,5],[4,6,4,7],[4,8,4,9],[5,0,9,0],[5,1,9,1],[5,4,5,11],[5,12,9,12],[6,4,6,11],[7,5,7,6],[7,7,7,11],[8,4,9,4],[8,5,9,5],[8,6,9,6],[8,7,9,7],[8,8,9,8],[8,9,9,9],[8,10,9,10],[8,11,9,11],[40,1,40,11],[41,1,41,12],[42,1,42,12]]}
["Финальная диагностика",{"$nulls":3},"ГРУППА СТАРШЕГО ВОЗРАСТА (5-6 лет)",null,null,"Период проведения - окончание посещения группы старшего возраста"]
["Стартовая диагностика",{"$nulls":3},"ГРУППА ПОДГОТОВИТЕЛЬНОГО К ШКОЛЕ ВОЗРАСТА (6-7 лет)",null,null,"Период проведения - начало уч. года (сентябрь) или начало посещения группы подготовительного к школе возраста"]
["*- не диагностируется в данном возрасте"]
["Сформированность показателя",{"$nulls":3},"«2» показатель сформирован",null,"«1» показатель в стадии формирования",null,"«0» показатель не сформирован"]
["Средний уровень",{"$nulls":3},"1,8 - 2,0 норма-высокий",null,"1,0 - 1,7 норма - средний",null,"0,0 - 0,9 ниже нормы"]
["№","Ф.И. ребенка",null,null,"ОБРАЗОВАТЕЛЬНАЯ ОБЛАСТЬ «РЕЧЕВОЕ  РАЗВИТИЕ»",{"$nulls":7},"СРЕДНИЙ ПОКАЗАТЕЛЬ ПО РЕБЕНКУ"]
[{"$nulls":4},"Показатели возможных достижений (возрастные характеристики) к 6 годам"]
[{"$nulls":4},"Общее речевое развитие","Формирование словаря",null,"Грамматический строй"]
[{"$nulls":4},"Ребенок внятно разговаривает","Ребенок умеет обобщать предметы в группы по существенным признакам","Ребенок демонстрирует богатый словарный запас","Ребенок правильно использует в речи: несклоняемые существительные","Ребенок правильно использует в речи: слова, имеющие только множественное или только единственное число","Ребенок правильно использует в речи: глаголы одеть-надеть","Ребенок правильно использует в речи: существительные множественного числа в родительном падеже","Ребенок правильно образовывает слова с помощью суффикса, приставки"]
[]
[1,{"$nulls":11},{"$f":"AVERAGE(E11:L11)","v":{"$error":"#DIV/0!"}}]
[2,{"$nulls":11},{"$error":"#DIV/0!"}]
[3,{"$nulls":11},{"$error":"#DIV/0!"}]
[4,{"$nulls":11},{"$error":"#DIV/0!"}]
[5,{"$nulls":11},{"$error":"#DIV/0!"}]
[6,{"$nulls":11},{"$error":"#DIV/0!"}]
[7,{"$nulls":11},{"$error":"#DIV/0!"}]
[8,{"$nulls":11},{"$error":"#DIV/0!"}]
[9,{"$nulls":11},{"$error":"#DIV/0!"}]
[10,{"$nulls":11},{"$error":"#DIV/0!"}]
[11,{"$nulls":11},{"$error":"#DIV/0!"}]
[12,{"$nulls":11},{"$error":"#DIV/0!"}]
[13,{"$nulls":11},{"$error":"#DIV/0!"}]
[14,{"$nulls":11},{"$error":"#DIV/0!"}]
[15,{"$nulls":11},{"$error":"#DIV/0!"}]
[16,{"$nulls":11},{"$error":"#DIV/0!"}]
[17,{"$nulls":11},{"$error":"#DIV/0!"}]
[18,{"$nulls":11},{"$error":"#DIV/0!"}]
[19,{"$nulls":11},{"$error":"#DIV/0!"}]
[20,{"$nulls":11},{"$error":"#DIV/0!"}]
[21,{"$nulls":11},{"$error":"#DIV/0!"}]
[22,{"$nulls":11},{"$error":"#DIV/0!"}]
[23,{"$nulls":11},{"$error":"#DIV/0!"}]
[24,{"$nulls":11},{"$error":"#DIV/0!"}]
[25,{"$nulls":11},{"$error":"#DIV/0!"}]
[26,{"$nulls":11},{"$error":"#DIV/0!"}]
[27,{"$nulls":11},{"$error":"#DIV/0!"}]
[28,{"$nulls":11},{"$error":"#DIV/0!"}]
[29,{"$nulls":11},{"$error":"#DIV/0!"}]
[30,{"$nulls":11},{"$error":"#DIV/0!"}]
[null,"СРЕДНИЙ ПОКАЗАТЕЛЬ ПО ГРУППЕ",{"$nulls":10},{"$f":"AVERAGE(M11:M40)","v":{"$error":"#DIV/0!"}}]
[null,"Ф.И.О, должность специалиста(ов)____________________________________________________________________________________________________________________________________________________________________________________________________________________________________"]
[null,"© Автор-составитель Кулекина И.А., СПБ, 2023"]

{"sheet":"Соц.ком. к 6г ч2","index":3,"n_rows":43,"n_cols":14,"rows_kept":43,"merged":[[0,0,0,1],[0,4,0,5],[0,7,0,12],[1,0,1,3],[1,4,1,6],[1,7,1,13],[2,0,2,3],[3,0,3,1],[3,4,3,5],[4,0,4,1],[4,4,4,5],[5,0,9,0],[5,1,9,1],[5,4,5,12],[5,13,9,13],[6,4,6,12],[7,4,7,6],[7,7,7,11],[8,4,9,4],[8,5,9,5],[8,6,9,6],[8,7,9,7],[8,8,9,8],[8,9,9,9],[8,10,9,10],[8,11,9,11],[8,12,9,12],[40,1,40,12],[41,1,41,13],[42,1,42,13]]}
["Финальная диагностика",{"$nulls":3},"ГРУППА СТАРШЕГО ВОЗРАСТА (5-6 лет)",null,null,"Период проведения - окончание посещения группы старшего возраста"]
["Стартовая диагностика",{"$nulls":3},"ГРУППА ПОДГОТОВИТЕЛЬНОГО К ШКОЛЕ ВОЗРАСТА (6-7 лет)",null,null,"Период проведения - начало уч. года (сентябрь) или начало посещения группы подготовительного к школе возраста"]
["*- не диагностируется в данном возрасте"]
["Сформированность показателя",{"$nulls":3},"«2» показатель сформирован",null,"«1» показатель в стадии формирования","«0» показатель не сформирован"]
["Средний уровень",{"$nulls":3},"1,8 - 2,0 норма-высокий",null,"1,0 - 1,7 норма - средний","0,0 - 0,9 ниже нормы"]
["№","Ф.И. ребенка",null,null,"ОБРАЗОВАТЕЛЬНАЯ ОБЛАСТЬ «СОЦИАЛЬНО-КОММУНИКАТИВНОЕ  РАЗВИТИЕ»",{"$nulls":8},"СРЕДНИЙ ПОКАЗАТЕЛЬ ПО РЕБЕНКУ"]
[{"$nulls":4},"Показатели возможных достижений (возрастные характеристики) к 6 годам"]
[{"$nulls":4},"Область формирования основ гражданственности и патриотизма",null,null,"Сфера трудового воспитания",{"$nulls":4},"Область формирования основ безопасного поведения"]
[{"$nulls":4},"Ребенок имеет представление о государственных символах России (герб, гимн, флаг)","Ребенок имеет представление о государственных праздниках России","Ребенок знает/может назвать/показать на картинке и в естественной среде достопримечательности населенного пункта, в котором живет","Ребенок имеет представления о разных видах производительного труда (промышленность, строительство, сельское хозяйство)","Ребенок имеет представления о разных видах обслуживающего труда (сфера досуга и отдыха, сфера культуры, медицина, торговля)","Ребенок имеет представление о структуре трудового процесса (мотив, цель, инструменты, оборудование, содержание действий, выбор трудовых действий, результат)","Ребенок имеет элементарные экономические представления (назначение рекламы, денег)","Ребенок охотно участвует в выполнении трудовых поручений, дежурстве; может распределять трудовые обязанности с другими","Ребенок имеет представления/ соблюдает правила поведения в быту, на улице, в природе, в общении с людьми, с животными"]
[]
[1,{"$nulls":12},{"$f":"AVERAGE(E11:M11)","v":{"$error":"#DIV/0!"}}]
[2,{"$nulls":12},{"$error":"#DIV/0!"}]
[3,{"$nulls":12},{"$error":"#DIV/0!"}]
[4,{"$nulls":12},{"$error":"#DIV/0!"}]
[5,{"$nulls":12},{"$error":"#DIV/0!"}]
[6,{"$nulls":12},{"$error":"#DIV/0!"}]
[7,{"$nulls":12},{"$error":"#DIV/0!"}]
[8,{"$nulls":12},{"$error":"#DIV/0!"}]
[9,{"$nulls":12},{"$error":"#DIV/0!"}]
[10,{"$nulls":12},{"$error":"#DIV/0!"}]
[11,{"$nulls":12},{"$error":"#DIV/0!"}]
[12,{"$nulls":12},{"$error":"#DIV/0!"}]
[13,{"$nulls":12},{"$error":"#DIV/0!"}]
[14,{"$nulls":12},{"$error":"#DIV/0!"}]
[15,{"$nulls":12},{"$error":"#DIV/0!"}]
[16,{"$nulls":12},{"$error":"#DIV/0!"}]
[17,{"$nulls":12},{"$error":"#DIV/0!"}]
[18,{"$nulls":12},{"$error":"#DIV/0!"}]
[19,{"$nulls":12},{"$error":"#DIV/0!"}]
[20,{"$nulls":12},{"$error":"#DIV/0!"}]
[21,{"$nulls":12},{"$error":"#DIV/0!"}]
[22,{"$nulls":12},{"$error":"#DIV/0!"}]
[23,{"$nulls":12},{"$error":"#DIV/0!"}]
[24,{"$nulls":12},{"$error":"#DIV/0!"}]
[25,{"$nulls":12},{"$error":"#DIV/0!"}]
[26,{"$nulls":12},{"$error":"#DIV/0!"}]
[27,{"$nulls":12},{"$error":"#DIV/0!"}]
[28,{"$nulls":12},{"$error":"#DIV/0!"}]
[29,{"$nulls":12},{"$error":"#DIV/0!"}]
[30,{"$nulls":12},{"$error":"#DIV/0!"}]
[null,"СРЕДНИЙ ПОКАЗАТЕЛЬ ПО ГРУППЕ",{"$nulls":11},{"$f":"AVERAGE(N11:N40)","v":{"$error":"#DIV/0!"}}]
[null,"Ф.И.О, должность специалиста(ов)____________________________________________________________________________________________________________________________________________________________________________________________________________________________________"]
[null,"© Автор-составитель Кулекина И.А., СПБ, 2023"]

{"sheet":"Физ.разв. к 6г ч2","index":4,"n_rows":45,"n_cols":26,"rows_kept":45,"merged":[[0,0,0,1],[0,5,0,9],[0,10,0,14],[1,0,1,3],[1,5,1,9],[1,10,1,17],[2,0,2,3],[3,0,3,1],[3,5,3,6],[3,7,3,9],[3,10,3,12],[4,0,4,1],[4,5,4,6],[4,7,4,9],[4,10,4,12],[5,0,11,0],[5,1,11,1],[5,4,5,24],[5,25,11,25],[6,4,6,24],[7,4,7,9],[7,10,7,13],[7,14,7,16],[7,17,7,19],[7,21,7,24],[8,4,8,5],[8,6,8,9],[8,10,9,10],[8,11,9,11],[8,12,9,12],[8,13,9,13],[8,14,11,14],[8,15,11,15],[8,16,11,16],[8,17,11,17],[8,18,11,18],[8,19,11,19],[8,20,11,20],[8,21,8,24],[9,4,11,4],[9,5,11,5],[9,6,11,6],[9,7,11,7],[9,8,11,8],[9,9,11,9],[9,21,11,21],[9,22,11,22],[9,23,11,23],[9,24,11,24],[10,10,11,10],[10,11,11,11],[10,12,11,12],[10,13,11,13],[42,1,42,24],[43,1,43,25],[44,1,44,25]]}
["Финальная диагностика",{"$nulls":4},"ГРУППА СТАРШЕГО ВОЗРАСТА (5-6 лет)",{"$nulls":4},"Период проведения - окончание посещения группы старшего возраста"]
["Стартовая диагностика",{"$nulls":4},"ГРУППА ПОДГОТОВИТЕЛЬНОГО К ШКОЛЕ ВОЗРАСТА (6-7 лет)",{"$nulls":4},"Период проведения - начало уч. года (сентябрь) или начало посещения группы подготовительного к школе возраста"]
["*- не диагностируется в данном возрасте"]
["Сформированность показателя",{"$nulls":4},"«2» показатель сформирован",null,"«1» показатель в стадии формирования",null,null,"«0» показатель не сформирован"]
["Средний уровень",{"$nulls":4},"1,8 - 2,0 норма-высокий",null,"1,0 - 1,7 норма - средний",null,null,"0,0 - 0,9 ниже нормы"]
["№","Ф.И. ребенка",null,null,"ОБРАЗОВАТЕЛЬНАЯ ОБЛАСТЬ «ФИЗИЧЕСКОЕ  РАЗВИТИЕ»",{"$nulls":20},"СРЕДНИЙ ПОКАЗАТЕЛЬ ПО РЕБЕНКУ"]
[{"$nulls":4},"Показатели возможных достижений (возрастные характеристики) к 6 годам"]
[{"$nulls":4},"Мелкая моторика",{"$nulls":5},"КГН",{"$nulls":3},"ЗОЖ",null,null,"Подвижные игры",null,null,"Спорт. игры","Спортивные упражнения"]
[{"$nulls":4},"Координация рук и глаз",null,"Графические навыки",{"$nulls":3},"Навыки соблюдения чистоты тела (правила личной гигиены)","Навыки культуры еды (прием пищи) ","Навыки поддержания порядка (правила поведения в быту) ","Навыки ухода за собой (одевание, раздевание) ","Ребенок имеет представление о факторах, положительно/негативно влияющих на здоровье; владеет основными способами укрепления здоровья","Ребенок имеет представление о некоторых видах спорта (9 и больше), роли спорта для укрепления здоровья","Ребенок проявляет заботливое отношение к своему здоровью и здоровью окружающих","Ребенок проявляет доступный возрасту самоконтроль","Ребенок  способен привлечь внимание других детей и организовать знакомую подвижную игру","Ребенок придумывает новые варианты игр, комбинирует движения","Ребенок имеет представление об элементах спортивных игр (городки, баскетбол, бадминтон, футбол), умеет выполнять некоторые виды движений","Ребенок умеет кататься"]
[{"$nulls":4},"Ребенок может найти выход из лабиринта","Ребенок может нарисовать простой узор, изображение, не отрывая руки","Ребенок может повторить узор с чередующимися элементами","Ребенок закрашивает контурное изображение с множеством мелких деталей, не выходя за контур","Ребенок может соединить точки для получения изображения","Ребенок рисует геометрический орнамент по клеткам",{"$nulls":11},"на санках","на лыжах","на двухколесном велосипеде","на самокате"]
[{"$nulls":10},"Ребенок выполняет самостоятельно","Ребенок выполняет самостоятельно","Ребенок выполняет самостоятельно","Ребенок выполняет самостоятельно"]
[]
[1,{"$nulls":24},{"$f":"AVERAGE(E13:Y13)","v":{"$error":"#DIV/0!"}}]
[2,{"$nulls":24},{"$error":"#DIV/0!"}]
[3,{"$nulls":24},{"$error":"#DIV/0!"}]
[4,{"$nulls":24},{"$error":"#DIV/0!"}]
[5,{"$nulls":24},{"$error":"#DIV/0!"}]
[6,{"$nulls":24},{"$error":"#DIV/0!"}]
[7,{"$nulls":24},{"$error":"#DIV/0!"}]
[8,{"$nulls":24},{"$error":"#DIV/0!"}]
[9,{"$nulls":24},{"$error":"#DIV/0!"}]
[10,{"$nulls":24},{"$error":"#DIV/0!"}]
[11,{"$nulls":24},{"$error":"#DIV/0!"}]
[12,{"$nulls":24},{"$error":"#DIV/0!"}]
[13,{"$nulls":24},{"$error":"#DIV/0!"}]
[14,{"$nulls":24},{"$error":"#DIV/0!"}]
[15,{"$nulls":24},{"$error":"#DIV/0!"}]
[16,{"$nulls":24},{"$error":"#DIV/0!"}]
[17,{"$nulls":24},{"$error":"#DIV/0!"}]
[18,{"$nulls":24},{"$error":"#DIV/0!"}]
[19,{"$nulls":24},{"$error":"#DIV/0!"}]
[20,{"$nulls":24},{"$error":"#DIV/0!"}]
[21,{"$nulls":24},{"$error":"#DIV/0!"}]
[22,{"$nulls":24},{"$error":"#DIV/0!"}]
[23,{"$nulls":24},{"$error":"#DIV/0!"}]
[24,{"$nulls":24},{"$error":"#DIV/0!"}]
[25,{"$nulls":24},{"$error":"#DIV/0!"}]
[26,{"$nulls":24},{"$error":"#DIV/0!"}]
[27,{"$nulls":24},{"$error":"#DIV/0!"}]
[28,{"$nulls":24},{"$error":"#DIV/0!"}]
[29,{"$nulls":24},{"$error":"#DIV/0!"}]
[30,{"$nulls":24},{"$error":"#DIV/0!"}]
[null,"СРЕДНИЙ ПОКАЗАТЕЛЬ ПО ГРУППЕ",{"$nulls":23},{"$f":"AVERAGE(Z13:Z42)","v":{"$error":"#DIV/0!"}}]
[null,"Ф.И.О, должность специалиста(ов)____________________________________________________________________________________________________________________________________________________________________________________________________________________________________"]
[null,"© Автор-составитель Кулекина И.А., СПБ, 2023"]

{"sheet":"Физ.разв. к 6г ч1","index":5,"n_rows":44,"n_cols":25,"rows_kept":44,"merged":[[0,0,0,1],[0,4,0,8],[0,9,0,13],[1,0,1,3],[1,4,1,8],[1,9,1,16],[2,0,2,3],[3,0,3,1],[3,4,3,7],[3,8,3,10],[3,11,3,13],[4,0,4,1],[4,4,4,7],[4,8,4,9],[4,11,4,13],[5,0,10,0],[5,1,10,1],[5,4,5,23],[5,24,10,24],[6,4,6,23],[7,4,7,23],[8,4,8,5],[8,6,8,8],[8,9,8,11],[8,12,8,14],[8,15,8,19],[8,20,8,21],[8,22,8,23],[9,4,10,4],[9,5,10,5],[9,6,10,6],[9,7,10,7],[9,8,10,8],[9,9,9,11],[9,12,9,14],[9,15,9,19],[9,20,10,20],[9,21,10,21],[9,22,9,23],[41,1,41,23],[42,1,42,24],[43,1,43,24]]}
["Финальная диагностика",{"$nulls":3},"ГРУППА СТАРШЕГО ВОЗРАСТА (5-6 лет)",{"$nulls":4},"Период проведения - окончание посещения группы старшего возраста"]
["Стартовая диагностика",{"$nulls":3},"ГРУППА ПОДГОТОВИТЕЛЬНОГО К ШКОЛЕ ВОЗРАСТА (6-7 лет)",{"$nulls":4},"Период проведения - начало уч. года (сентябрь) или начало посещения группы подготовительного к школе возраста"]
["*- не диагностируется в данном возрасте"]
["Сформированность показателя",{"$nulls":3},"«2» показатель сформирован",{"$nulls":3},"«1» показатель в стадии формирования",null,null,"«0» показатель не сформирован"]
["Средний уровень",{"$nulls":3},"1,8 - 2,0 норма-высокий",{"$nulls":3},"1,0 - 1,7 норма - средний",null,null,"0,0 - 0,9 ниже нормы"]
["№","Ф.И. ребенка",null,null,"ОБРАЗОВАТЕЛЬНАЯ ОБЛАСТЬ «ФИЗИЧЕСКОЕ РАЗВИТИЕ»",{"$nulls":19},"СРЕДНИЙ ПОКАЗАТЕЛЬ ПО РЕБЕНКУ"]
[{"$nulls":4},"Показатели возможных достижений (возрастные характеристики) к 6 годам"]
[{"$nulls":4},"Крупная моторика. ОВД, ОРУ"]
[{"$nulls":4},"Бросание, катание, ловля, метание",null,"Ползанье, лазанье",null,null,"Ходьба",null,null,"Бег",null,null,"Прыжки",{"$nulls":4},"Равновесие",null,"Строевые упражнения"]
[{"$nulls":4},"Ребенок выполняет различные упражнения с мячом (прокатывание, передача, перебрасывание, ведение, подбрасывание, ловля, забрасывание)","Ребенок выполняет метание в цель, метание в даль предметов разной массы","Ребенок выполняет ползанье разными способами (на четвереньках, на животе)","Ребенок выполняет переползание через несколько предметов подряд, под дугами, в туннеле","Ребенок выполняет лазанье по гимнастической стенке чередующимся шагом","Ребенок выполняет различные виды ходьбы",null,null,"Ребенок выполняет различные виды бега",null,null,"Ребенок выполняет различные виды прыжков",{"$nulls":4},"Ребенок выполняет стойку на одной ноге ","Ребенок выполняет упражнение \"ласточка\" ","Ребенок выполняет различные виды строевых упражнений"]
[{"$nulls":9},"обычным шагом, на носках, на пятках, с высоким подниманием колен","приставной, в полуприседе, мелким и широким, перекатом с пятки на носок, гимнастическим","змейкой без ориентиров, в колонне по одному и по два","в колонне по одному, змейкой, с перестроением на ходу в пары, звенья","со сменой ведущих, с пролезанием в обруч, с ловлей и увертыванием, высоко поднимая колени","между расставленными предметами, в заданном темпе, мелким и широким шагом","подпрыгивание, перепрыгивание, спрыгивание","в длину с места","в высоту с разбега","в длину с разбега","со скакалкой",null,null,"построения (по росту, в колонну по одному, в шеренгу, в круг)","в колонну по три, в две шеренги на месте, расхождение из колонны в разные стороны"]
[1,{"$nulls":23},{"$f":"AVERAGE(H12:X12)","v":{"$error":"#DIV/0!"}}]
[2,{"$nulls":23},{"$error":"#DIV/0!"}]
[3,{"$nulls":23},{"$error":"#DIV/0!"}]
[4,{"$nulls":23},{"$error":"#DIV/0!"}]
[5,{"$nulls":23},{"$error":"#DIV/0!"}]
[6,{"$nulls":23},{"$error":"#DIV/0!"}]
[7,{"$nulls":23},{"$error":"#DIV/0!"}]
[8,{"$nulls":23},{"$error":"#DIV/0!"}]
[9,{"$nulls":23},{"$error":"#DIV/0!"}]
[10,{"$nulls":23},{"$error":"#DIV/0!"}]
[11,{"$nulls":23},{"$error":"#DIV/0!"}]
[12,{"$nulls":23},{"$error":"#DIV/0!"}]
[13,{"$nulls":23},{"$error":"#DIV/0!"}]
[14,{"$nulls":23},{"$error":"#DIV/0!"}]
[15,{"$nulls":23},{"$error":"#DIV/0!"}]
[16,{"$nulls":23},{"$error":"#DIV/0!"}]
[17,{"$nulls":23},{"$error":"#DIV/0!"}]
[18,{"$nulls":23},{"$error":"#DIV/0!"}]
[19,{"$nulls":23},{"$error":"#DIV/0!"}]
[20,{"$nulls":23},{"$error":"#DIV/0!"}]
[21,{"$nulls":23},{"$error":"#DIV/0!"}]
[22,{"$nulls":23},{"$error":"#DIV/0!"}]
[23,{"$nulls":23},{"$error":"#DIV/0!"}]
[24,{"$nulls":23},{"$error":"#DIV/0!"}]
[25,{"$nulls":23},{"$error":"#DIV/0!"}]
[26,{"$nulls":23},{"$error":"#DIV/0!"}]
[27,{"$nulls":23},{"$error":"#DIV/0!"}]
[28,{"$nulls":23},{"$error":"#DIV/0!"}]
[29,{"$nulls":23},{"$error":"#DIV/0!"}]
[30,{"$nulls":23},{"$error":"#DIV/0!"}]
[null,"СРЕДНИЙ ПОКАЗАТЕЛЬ ПО ГРУППЕ",{"$nulls":22},{"$f":"AVERAGE(Y12:Y41)","v":{"$error":"#DIV/0!"}}]
[null,"Ф.И.О, должность специалиста(ов)____________________________________________________________________________________________________________________________________________________________________________________________________________________________________"]
[null,"© Автор-составитель Кулекина И.А., СПБ, 2023"]

{"sheet":"Соц.ком.к 6г ч1","index":6,"n_rows":43,"n_cols":22,"rows_kept":43,"merged":[[0,0,0,1],[0,4,0,8],[0,10,0,13],[1,0,1,3],[1,4,1,9],[1,10,1,15],[2,0,2,3],[3,0,3,1],[3,4,3,7],[3,8,3,13],[3,14,3,17],[4,0,4,1],[4,4,4,7],[4,8,4,13],[4,14,4,17],[5,0,9,0],[5,1,9,1],[5,4,5,20],[5,21,9,21],[6,4,6,20],[7,4,7,20],[8,4,8,5],[8,6,8,7],[8,8,8,9],[8,10,8,13],[8,15,8,17],[8,18,8,20],[40,1,40,20],[41,1,41,21],[42,1,42,21]]}
["Финальная диагностика",{"$nulls":3},"ГРУППА СТАРШЕГО ВОЗРАСТА (5-6 лет)",{"$nulls":5},"Период проведения - окончание посещения группы старшего возраста"]
["Стартовая диагностика",{"$nulls":3},"ГРУППА ПОДГОТОВИТЕЛЬНОГО К ШКОЛЕ ВОЗРАСТА (6-7 лет)",{"$nulls":5},"Период проведения - начало уч. года (сентябрь) или начало посещения группы подготовительного к школе возраста"]
["*- не диагностируется в данном возрасте"]
["Сформированность показателя",{"$nulls":3},"«2» показатель сформирован",{"$nulls":3},"«1» показатель в стадии формирования",{"$nulls":5},"«0» показатель не сформирован"]
["Средний уровень",{"$nulls":3},"1,8 - 2,0 норма-высокий",{"$nulls":3},"1,0 - 1,7 норма - средний",{"$nulls":5},"0,0 - 0,9 ниже нормы"]
["№","Ф.И. ребенка",null,null,"ОБРАЗОВАТЕЛЬНАЯ ОБЛАСТЬ «СОЦИАЛЬНО-КОММУНИКАТИВНОЕ  РАЗВИТИЕ»",{"$nulls":16},"СРЕДНИЙ ПОКАЗАТЕЛЬ ПО РЕБЕНКУ"]
[{"$nulls":4},"Показатели возможных достижений (возрастные характеристики) к 6 годам"]
[{"$nulls":4},"Сфера социальных отношений"]
[{"$nulls":4},"Отношение к самому себе",null,"Отношение к сверстникам",null,"Отношение к взрослым",null,"Эмоции",{"$nulls":3},"Поведение","Семья",null,null,"Игровое поведение"]
[{"$nulls":4},"Ребенок может рассказать о себе, выразить собственные потребности, желания","Ребенок имеет представление о некоторых своих правах","Ребенок имеет предпочтения в общении","Ребенок охотно вступает в общение со сверстниками","Ребенок уважительно относится к взрослым, пожилым людям","Ребенок охотно вступает в общение со взрослыми","Ребенок понимает свои и чужие эмоциональные состояния, демонстрирует примеры эмоциональной поддержки ","Ребенок  откликается на просьбу помочь","Ребенок выразить чувства и эмоции в мимике, пантомимике, действиях, интонации","Ребенок демонстрирует адекватные возрасту способы регуляции эмоциональных состояний","Ребенок ориентируется на общепринятые нормы и правила культуры поведения","Ребенок знает членов своей семьи, ближайших родственников по линии матери и отца","Ребенок имеет представление о способах поддержки родственных связей (переписка, разговор, совместный отдых, традиции, походы в гости и др.)","Ребенок проявляет заботу по отношению к членам своей семьи, оказывает посильную помощь больному члену семьи","Ребенок в совместной деятельности принимает общую цель, договаривается о способах деятельности и материалах, может уступить в конфликтной ситуации","Ребенок проявляет интерес к игровому экспериментированию, развивающим и познавательным играм","Ребенок способен действовать в точном соответствие с игровой задачей и правилами"]
[1,{"$nulls":20},{"$f":"AVERAGE(G11:U11)","v":{"$error":"#DIV/0!"}}]
[2,{"$nulls":20},{"$error":"#DIV/0!"}]
[3,{"$nulls":20},{"$error":"#DIV/0!"}]
[4,{"$nulls":20},{"$error":"#DIV/0!"}]
[5,{"$nulls":20},{"$error":"#DIV/0!"}]
[6,{"$nulls":20},{"$error":"#DIV/0!"}]
[7,{"$nulls":20},{"$error":"#DIV/0!"}]
[8,{"$nulls":20},{"$error":"#DIV/0!"}]
[9,{"$nulls":20},{"$error":"#DIV/0!"}]
[10,{"$nulls":20},{"$error":"#DIV/0!"}]
[11,{"$nulls":20},{"$error":"#DIV/0!"}]
[12,{"$nulls":20},{"$error":"#DIV/0!"}]
[13,{"$nulls":20},{"$error":"#DIV/0!"}]
[14,{"$nulls":20},{"$error":"#DIV/0!"}]
[15,{"$nulls":20},{"$error":"#DIV/0!"}]
[16,{"$nulls":20},{"$error":"#DIV/0!"}]
[17,{"$nulls":20},{"$error":"#DIV/0!"}]
[18,{"$nulls":20},{"$error":"#DIV/0!"}]
[19,{"$nulls":20},{"$error":"#DIV/0!"}]
[20,{"$nulls":20},{"$error":"#DIV/0!"}]
[21,{"$nulls":20},{"$error":"#DIV/0!"}]
[22,{"$nulls":20},{"$error":"#DIV/0!"}]
[23,{"$nulls":20},{"$error":"#DIV/0!"}]
[24,{"$nulls":20},{"$error":"#DIV/0!"}]
[25,{"$nulls":20},{"$error":"#DIV/0!"}]
[26,{"$nulls":20},{"$error":"#DIV/0!"}]
[27,{"$nulls":20},{"$error":"#DIV/0!"}]
[28,{"$nulls":20},{"$error":"#DIV/0!"}]
[29,{"$nulls":20},{"$error":"#DIV/0!"}]
[30,{"$nulls":20},{"$error":"#DIV/0!"}]
[null,"СРЕДНИЙ ПОКАЗАТЕЛЬ ПО ГРУППЕ",{"$nulls":19},{"$f":"AVERAGE(V11:V40)","v":{"$error":"#DIV/0!"}}]
[null,"Ф.И.О, должность специалиста(ов)____________________________________________________________________________________________________________________________________________________________________________________________________________________________________"]
[null,"© Автор-составитель Кулекина И.А., СПБ, 2023"]

{"sheet":"Позн.разв. к 6г ч1","index":7,"n_rows":44,"n_cols":20,"rows_kept":44,"merged":[[0,1,0,2],[0,5,0,7],[0,8,0,12],[1,1,1,4],[1,5,1,7],[1,8,1,14],[2,1,2,4],[3,1,3,2],[3,5,3,6],[3,7,3,8],[3,9,3,10],[4,1,4,2],[4,5,4,6],[4,7,4,8],[4,9,4,10],[5,0,10,0],[5,1,10,1],[5,4,5,18],[5,19,10,19],[6,4,6,18],[7,4,7,6],[7,7,7,9],[7,10,7,18],[8,7,10,7],[8,8,10,8],[8,9,10,9],[8,10,8,12],[8,16,8,18],[9,4,9,6],[9,10,10,10],[9,11,10,11],[9,12,10,12],[9,13,10,13],[9,14,10,14],[9,15,10,15],[9,16,10,16],[9,17,10,17],[9,18,10,18],[41,1,41,18],[43,1,43,19]]}
[null,"Финальная диагностика",{"$nulls":3},"ГРУППА СТАРШЕГО ВОЗРАСТА (5-6 лет)",null,null,"Период проведения - окончание посещения группы старшего возраста"]
[null,"Стартовая диагностика",{"$nulls":3},"ГРУППА ПОДГОТОВИТЕЛЬНОГО К ШКОЛЕ ВОЗРАСТА (6-7 лет)",null,null,"Период проведения - начало уч. года (сентябрь) или начало посещения группы подготовительного к школе возраста"]
[null,"*- не диагностируется в данном возрасте"]
[null,"Сформированность показателя",{"$nulls":3},"«2» показатель сформирован",null,"«1» показатель в стадии формирования",null,"«0» показатель не сформирован"]
[null,"Средний уровень",{"$nulls":3},"1,8 - 2,0 норма-высокий",null,"1,0 - 1,7 норма - средний",null,"0,0 - 0,9 ниже нормы"]
["№","Ф.И. ребенка",null,null,"ОБРАЗОВАТЕЛЬНАЯ ОБЛАСТЬ «ПОЗНАВАТЕЛЬНОЕ  РАЗВИТИЕ»",{"$nulls":14},"СРЕДНИЙ ПОКАЗАТЕЛЬ ПО РЕБЕНКУ"]
[{"$nulls":4},"Показатели возможных достижений (возрастные характеристики) к 6 годам"]
[{"$nulls":4},"Сенсорные эталоны ",null,null,"Познавательные действия",null,null,"Математические представления"]
[{"$nulls":4},"Цвет, оттенки","Форма, геометрические фигуры","Величина","Ребенок охотно участвует в обсуждении проблемы для совместного нахождения способов ее решения, предлагает пути решения, устанавливает закономерности причинно-следственного характера, проявляет любознательность","Ребенок использует математические знания, способы и средства для познания окружающего мира","Ребенок способен к произвольным умственным действиям, логическим операциям анализа, сравнения, обобщения, систематизации, классификации","Количество и счет",null,null,"Ориентировка во времени","Ориентировка в пространстве","Пространственно-количественные связи и отношения","Сравнение"]
[{"$nulls":4},"Ребенок различает и называет",{"$nulls":5},"Ребенок знает/называет/находит среди других цифры 0 -10","Ребенок выполняет количественный и порядковый счет в пределах 0-10","Ребенок знает состав чисел из единиц в пределах 5","Ребенок понимает календарные единицы времени (сутки, неделя, месяц, год)","Ребенок ориентируется на листе бумаги","Ребенок понимает простейшую графическую информацию об отношениях предметов (слева направо, справа налево, снизу вверх, сверху вниз)","Ребенок выделяет сходства и отличия между группами предметов","Ребенок сравнивает предметы по 3-5 признакам","Ребенок группирует предметы по разным основаниям, преимущественно на основе зрительной оценки"]
[{"$nulls":4},"Ребенок называет/различает все цвета спектра и ахроматические цвета, оттенки цвета, тоны цвета, теплые и холодные оттенки","Ребенок владеет способами воссоздания фигуры из частей, деления фигуры на части","Ребенок может выстраивать сериационные ряды предметов, различающихся по размеру в возрастающем и убывающем порядке в пределах 10"]
[1,{"$nulls":18},{"$f":"AVERAGE(E12:S12)","v":{"$error":"#DIV/0!"}}]
[2,{"$nulls":18},{"$error":"#DIV/0!"}]
[3,{"$nulls":18},{"$error":"#DIV/0!"}]
[4,{"$nulls":18},{"$error":"#DIV/0!"}]
[5,{"$nulls":18},{"$error":"#DIV/0!"}]
[6,{"$nulls":18},{"$error":"#DIV/0!"}]
[7,{"$nulls":18},{"$error":"#DIV/0!"}]
[8,{"$nulls":18},{"$error":"#DIV/0!"}]
[9,{"$nulls":18},{"$error":"#DIV/0!"}]
[10,{"$nulls":18},{"$error":"#DIV/0!"}]
[11,{"$nulls":18},{"$error":"#DIV/0!"}]
[12,{"$nulls":18},{"$error":"#DIV/0!"}]
[13,{"$nulls":18},{"$error":"#DIV/0!"}]
[14,{"$nulls":18},{"$error":"#DIV/0!"}]
[15,{"$nulls":18},{"$error":"#DIV/0!"}]
[16,{"$nulls":18},{"$error":"#DIV/0!"}]
[17,{"$nulls":18},{"$error":"#DIV/0!"}]
[18,{"$nulls":18},{"$error":"#DIV/0!"}]
[19,{"$nulls":18},{"$error":"#DIV/0!"}]
[20,{"$nulls":18},{"$error":"#DIV/0!"}]
[21,{"$nulls":18},{"$error":"#DIV/0!"}]
[22,{"$nulls":18},{"$error":"#DIV/0!"}]
[23,{"$nulls":18},{"$error":"#DIV/0!"}]
[24,{"$nulls":18},{"$error":"#DIV/0!"}]
[25,{"$nulls":18},{"$error":"#DIV/0!"}]
[26,{"$nulls":18},{"$error":"#DIV/0!"}]
[27,{"$nulls":18},{"$error":"#DIV/0!"}]
[28,{"$nulls":18},{"$error":"#DIV/0!"}]
[29,{"$nulls":18},{"$error":"#DIV/0!"}]
[30,{"$nulls":18},{"$error":"#DIV/0!"}]
[null,"СРЕДНИЙ ПОКАЗАТЕЛЬ ПО ГРУППЕ",{"$nulls":17},{"$f":"AVERAGE(T12:T41)","v":{"$error":"#DIV/0!"}}]
[null,"Ф.И.О, должность специалиста(ов)____________________________________________________________________________________________________________________________________________________________________________________________________________________________________"]
[null,"© Автор-составитель Кулекина И.А., СПБ, 2023"]

{"sheet":"Позн.разв. к 6г ч2","index":8,"n_rows":44,"n_cols":11,"rows_kept":44,"merged":[[0,0,0,1],[0,4,0,6],[0,7,0,9],[1,0,1,3],[1,4,1,6],[1,7,1,10],[2,0,2,3],[3,0,3,1],[3,4,3,5],[3,7,3,8],[4,0,4,1],[4,4,4,5],[4,7,4,8],[5,0,10,0],[5,1,10,1],[5,4,5,9],[5,10,10,10],[6,4,6,9],[7,4,7,5],[7,6,7,9],[8,4,9,5],[8,6,8,7],[8,8,8,9],[9,6,10,6],[9,7,10,7],[9,8,10,8],[9,9,10,9],[41,1,41,9],[43,1,43,10]]}
["Финальная диагностика",{"$nulls":3},"ГРУППА СТАРШЕГО ВОЗРАСТА (5-6 лет)",null,null,"Период проведения - окончание посещения группы старшего возраста"]
["Стартовая диагностика",{"$nulls":3},"ГРУППА ПОДГОТОВИТЕЛЬНОГО К ШКОЛЕ ВОЗРАСТА (6-7 лет)",null,null,"Период проведения - начало уч. года (сентябрь) или начало посещения группы подготовительного к школе возраста"]
["*- не диагностируется в данном возрасте"]
["Сформированность показателя",{"$nulls":3},"«2» показатель сформирован",null,null,"«0» показатель не сформирован"]
["Средний уровень",{"$nulls":3},"1,8 - 2,0 норма-высокий",null,null,"0,0 - 0,9 ниже нормы"]
["№","Ф.И. ребенка",null,null,"ОБРАЗОВАТЕЛЬНАЯ ОБЛАСТЬ «ПОЗНАВАТЕЛЬНОЕ  РАЗВИТИЕ»",{"$nulls":5},"СРЕДНИЙ ПОКАЗАТЕЛЬ ПО РЕБЕНКУ"]
[{"$nulls":4},"Показатели возможных достижений (возрастные характеристики) к 6 годам"]
[{"$nulls":4},"Окружающий мир",null,"Природа "]
[{"$nulls":4},"Ребенок имеет представления, может показать на картинке и в естественной среде, может рассказать",null,"Объекты живой природы",null,"Объекты неживой природы, природные явления"]
[{"$nulls":6},"Ребенок имеет представление о сходстве и различии во внешнем виде и образе жизни объектов животного и растительного мира в разные сезоны года","Ребенок может сравнивать, группировать объекты живой природы по их особенностям, мету обитания, образу жизни, питанию","Ребенок имеет представление о признаках разных времен года","Ребенок наблюдает за явлениями природы, фиксирует результаты наблюдения"]
[{"$nulls":4},"о многообразии людей разных национальностей (особенностей внешнего вида, одежды, традиций)","Ребенок имеет представление о многообразии стран и народов мира"]
[1,{"$nulls":9},{"$f":"AVERAGE(E12:J12)","v":{"$error":"#DIV/0!"}}]
[2,{"$nulls":9},{"$error":"#DIV/0!"}]
[3,{"$nulls":9},{"$error":"#DIV/0!"}]
[4,{"$nulls":9},{"$error":"#DIV/0!"}]
[5,{"$nulls":9},{"$error":"#DIV/0!"}]
[6,{"$nulls":9},{"$error":"#DIV/0!"}]
[7,{"$nulls":9},{"$error":"#DIV/0!"}]
[8,{"$nulls":9},{"$error":"#DIV/0!"}]
[9,{"$nulls":9},{"$error":"#DIV/0!"}]
[10,{"$nulls":9},{"$error":"#DIV/0!"}]
[11,{"$nulls":9},{"$error":"#DIV/0!"}]
[12,{"$nulls":9},{"$error":"#DIV/0!"}]
[13,{"$nulls":9},{"$error":"#DIV/0!"}]
[14,{"$nulls":9},{"$error":"#DIV/0!"}]
[15,{"$nulls":9},{"$error":"#DIV/0!"}]
[16,{"$nulls":9},{"$error":"#DIV/0!"}]
[17,{"$nulls":9},{"$error":"#DIV/0!"}]
[18,{"$nulls":9},{"$error":"#DIV/0!"}]
[19,{"$nulls":9},{"$error":"#DIV/0!"}]
[20,{"$nulls":9},{"$error":"#DIV/0!"}]
[21,{"$nulls":9},{"$error":"#DIV/0!"}]
[22,{"$nulls":9},{"$error":"#DIV/0!"}]
[23,{"$nulls":9},{"$error":"#DIV/0!"}]
[24,{"$nulls":9},{"$error":"#DIV/0!"}]
[25,{"$nulls":9},{"$error":"#DIV/0!"}]
[26,{"$nulls":9},{"$error":"#DIV/0!"}]
[27,{"$nulls":9},{"$error":"#DIV/0!"}]
[28,{"$nulls":9},{"$error":"#DIV/0!"}]
[29,{"$nulls":9},{"$error":"#DIV/0!"}]
[30,{"$nulls":9},{"$error":"#DIV/0!"}]
[null,"СРЕДНИЙ ПОКАЗАТЕЛЬ ПО ГРУППЕ",{"$nulls":8},{"$f":"AVERAGE(K12:K41)","v":{"$error":"#DIV/0!"}}]
[null,"Ф.И.О, должность специалиста(ов)____________________________________________________________________________________________________________________________________________________________________________________________________________________________________"]
[null,"© Автор-составитель Кулекина И.А., СПБ, 2023"]

{"sheet":"Худ.эст.к 6г ч1","index":9,"n_rows":44,"n_cols":16,"rows_kept":44,"merged":[[0,0,0,1],[0,4,0,6],[0,7,0,10],[1,0,1,3],[1,4,1,6],[1,7,1,11],[2,0,2,3],[3,0,3,1],[3,4,3,5],[3,6,3,8],[3,9,3,10],[4,0,4,1],[4,4,4,5],[4,6,4,8],[4,9,4,10],[5,0,10,0],[5,1,10,1],[5,4,5,14],[5,15,10,15],[6,4,6,14],[7,4,7,14],[8,4,8,7],[8,12,8,13],[9,4,10,4],[9,5,10,5],[9,6,10,6],[9,7,10,7],[9,8,10,8],[9,9,10,9],[9,10,10,10],[9,11,10,11],[9,12,10,12],[9,13,10,13],[9,14,10,14],[41,1,41,14],[43,1,43,15]]}
["Финальная диагностика",{"$nulls":3},"ГРУППА СТАРШЕГО ВОЗРАСТА (5-6 лет)",null,null,"Период проведения - окончание посещения группы старшего возраста"]
["Стартовая диагностика",{"$nulls":3},"ГРУППА ПОДГОТОВИТЕЛЬНОГО К ШКОЛЕ ВОЗРАСТА (6-7 лет)",null,null,"Период проведения - начало уч. года (сентябрь) или начало посещения группы подготовительного к школе возраста"]
["*- не диагностируется в данном возрасте"]
["Сформированность показателя",{"$nulls":3},"«2» показатель сформирован",null,"«1» показатель в стадии формирования",null,null,"«0» показатель не сформирован"]
["Средний уровень",{"$nulls":3},"1,8 - 2,0 норма-высокий",null,"1,0 - 1,7 норма - средний",null,null,"0,0 - 0,9 ниже нормы"]
["№","Ф.И. ребенка",null,null,"ОБРАЗОВАТЕЛЬНАЯ ОБЛАСТЬ «ХУДОЖЕСТВЕННО-ЭСТЕТИЧЕСКОЕ РАЗВИТИЕ»",{"$nulls":10},"СРЕДНИЙ ПОКАЗАТЕЛЬ ПО РЕБЕНКУ"]
[{"$nulls":4},"Показатели возможных достижений (возрастные характеристики) к 6 годам"]
[{"$nulls":4},"Музыкальная деятельность"]
[{"$nulls":4},"Слушание",{"$nulls":3},"Пение ","Музыкально-ритмические движения","Песенное творчество","Игра на детских музыкальных инструментах","Театрализованная деятельность",null,"Танцевально-игровое творчество"]
[{"$nulls":4},"Ребенок различает жанры музыкальных произведений (песня, танец, марш)","Ребенок узнает мелодию по отдельным фрагментам произведения (вступление, заключение, музыкальная фраза)","Ребенок различает звуки по высоте в пределах квинты","Ребенок различает звучание музыкальных инструментов (клавишно-ударных, струнных)","Ребенок демонстрирует развитые певческие навыки","Ребенок демонстрирует развитые навыки исполнения танцевальных движений","Ребенок может импровизировать мелодию на заданный текст","Ребенок демонстрирует навыки игры на детских музыкальных инструментах","Ребенок имеет представление о различных видах театрального искусства","Ребенок с удовольствие занимается театрализованной деятельностью","Ребенок может придумывать движения к танцам"]
[]
[1,{"$nulls":14},{"$f":"AVERAGE(H12:O12)","v":{"$error":"#DIV/0!"}}]
[2,{"$nulls":14},{"$error":"#DIV/0!"}]
[3,{"$nulls":14},{"$error":"#DIV/0!"}]
[4,{"$nulls":14},{"$error":"#DIV/0!"}]
[5,{"$nulls":14},{"$error":"#DIV/0!"}]
[6,{"$nulls":14},{"$error":"#DIV/0!"}]
[7,{"$nulls":14},{"$error":"#DIV/0!"}]
[8,{"$nulls":14},{"$error":"#DIV/0!"}]
[9,{"$nulls":14},{"$error":"#DIV/0!"}]
[10,{"$nulls":14},{"$error":"#DIV/0!"}]
[11,{"$nulls":14},{"$error":"#DIV/0!"}]
[12,{"$nulls":14},{"$error":"#DIV/0!"}]
[13,{"$nulls":14},{"$error":"#DIV/0!"}]
[14,{"$nulls":14},{"$error":"#DIV/0!"}]
[15,{"$nulls":14},{"$error":"#DIV/0!"}]
[16,{"$nulls":14},{"$error":"#DIV/0!"}]
[17,{"$nulls":14},{"$error":"#DIV/0!"}]
[18,{"$nulls":14},{"$error":"#DIV/0!"}]
[19,{"$nulls":14},{"$error":"#DIV/0!"}]
[20,{"$nulls":14},{"$error":"#DIV/0!"}]
[21,{"$nulls":14},{"$error":"#DIV/0!"}]
[22,{"$nulls":14},{"$error":"#DIV/0!"}]
[23,{"$nulls":14},{"$error":"#DIV/0!"}]
[24,{"$nulls":14},{"$error":"#DIV/0!"}]
[25,{"$nulls":14},{"$error":"#DIV/0!"}]
[26,{"$nulls":14},{"$error":"#DIV/0!"}]
[27,{"$nulls":14},{"$error":"#DIV/0!"}]
[28,{"$nulls":14},{"$error":"#DIV/0!"}]
[29,{"$nulls":14},{"$error":"#DIV/0!"}]
[30,{"$nulls":14},{"$error":"#DIV/0!"}]
[null,"СРЕДНИЙ ПОКАЗАТЕЛЬ ПО ГРУППЕ",{"$nulls":13},{"$f":"AVERAGE(P12:P41)","v":{"$error":"#DIV/0!"}}]
[null,"Ф.И.О, должность специалиста(ов)____________________________________________________________________________________________________________________________________________________________________________________________________________________________________"]
[null,"© Автор-составитель Кулекина И.А., СПБ, 2023"]

{"sheet":"Худ.эст.к 6г ч2","index":10,"n_rows":44,"n_cols":14,"rows_kept":44,"merged":[[0,0,0,1],[0,4,0,5],[0,6,0,10],[1,0,1,3],[1,4,1,5],[1,6,1,11],[2,0,2,3],[3,0,3,1],[3,4,3,5],[3,8,3,9],[4,0,4,1],[4,4,4,5],[4,8,4,9],[5,0,10,0],[5,1,10,1],[5,4,5,12],[5,13,10,13],[6,4,6,12],[7,4,7,11],[8,4,8,5],[8,8,8,9],[8,10,8,11],[8,12,10,12],[9,4,10,4],[9,5,10,5],[9,6,10,6],[9,7,10,7],[9,8,10,8],[9,9,10,9],[9,10,10,10],[9,11,10,11],[41,1,41,12],[43,1,43,13]]}
["Финальная диагностика",{"$nulls":3},"ГРУППА СТАРШЕГО ВОЗРАСТА (5-6 лет)",null,"Период проведения - окончание посещения группы старшего возраста"]
["Стартовая диагностика",{"$nulls":3},"ГРУППА ПОДГОТОВИТЕЛЬНОГО К ШКОЛЕ ВОЗРАСТА (6-7 лет)",null,"Период проведения - начало уч. года (сентябрь) или начало посещения группы подготовительного к школе возраста"]
["*- не диагностируется в данном возрасте"]
["Сформированность показателя",{"$nulls":3},"«2» показатель сформирован",null,"«1» показатель в стадии формирования",null,"«0» показатель не сформирован"]
["Средний уровень",{"$nulls":3},"1,8 - 2,0 норма-высокий",null,"1,0 - 1,7 норма - средний",null,"0,0 - 0,9 ниже нормы"]
[null,"Ф.И. ребенка",null,null,"ОБРАЗОВАТЕЛЬНАЯ ОБЛАСТЬ «ХУДОЖЕСТВЕННО-ЭСТЕТИЧЕСКОЕ РАЗВИТИЕ»",{"$nulls":8},"СРЕДНИЙ ПОКАЗАТЕЛЬ ПО РЕБЕНКУ"]
[{"$nulls":4},"Показатели возможных достижений (возрастные характеристики) к 6 годам"]
[{"$nulls":4},"Изобразительная деятельность"]
[{"$nulls":4},"Рисование ",null,"Лепка ","Аппликация ","Народное ДПИ",null,"Прикладное творчество",null,"Ребенок самостоятельно определяет замысел рисунка, аппликации, лепки, поделки, создает образы и композиционные изображения, использует разнообразные материалы"]
[{"$nulls":4},"Ребенок передает в изображении основные свойства предметов (форма, величина, цвет), характерные детали, соотношение предметов и их частей по величине, высоте, расположению относительно друг друга","Ребенок владеет основными способами и приемами рисования различными изобразительными материалами (цветные карандаши, гуашь, акварель, цветные мелки, пастель, сангина, угольный карандаш, фломастеры)","Ребенок лепит с натуры и по представлению знакомые предметы, передавая характерные особенности пластическим, конструктивным и комбинированным способами","Ребенок умеет пользоваться ножницами","Ребенок имеет представление о полхов-майданской, гжельской росписи","Ребенок может нарисовать узор, используя элементы  росписи","Ребенок умеет работать с бумагой (сгибать лист, сглаживать сгибы, надрезать по сгибам)","Ребенок умеет работать с природным и бросовым материалом"]
[]
[1,{"$nulls":12},{"$f":"AVERAGE(F12:M12)","v":{"$error":"#DIV/0!"}}]
[2,{"$nulls":12},{"$error":"#DIV/0!"}]
[3,{"$nulls":12},{"$error":"#DIV/0!"}]
[4,{"$nulls":12},{"$error":"#DIV/0!"}]
[5,{"$nulls":12},{"$error":"#DIV/0!"}]
[6,{"$nulls":12},{"$error":"#DIV/0!"}]
[7,{"$nulls":12},{"$error":"#DIV/0!"}]
[8,{"$nulls":12},{"$error":"#DIV/0!"}]
[9,{"$nulls":12},{"$error":"#DIV/0!"}]
[10,{"$nulls":12},{"$error":"#DIV/0!"}]
[11,{"$nulls":12},{"$error":"#DIV/0!"}]
[12,{"$nulls":12},{"$error":"#DIV/0!"}]
[13,{"$nulls":12},{"$error":"#DIV/0!"}]
[14,{"$nulls":12},{"$error":"#DIV/0!"}]
[15,{"$nulls":12},{"$error":"#DIV/0!"}]
[16,{"$nulls":12},{"$error":"#DIV/0!"}]
[17,{"$nulls":12},{"$error":"#DIV/0!"}]
[18,{"$nulls":12},{"$error":"#DIV/0!"}]
[19,{"$nulls":12},{"$error":"#DIV/0!"}]
[20,{"$nulls":12},{"$error":"#DIV/0!"}]
[21,{"$nulls":12},{"$error":"#DIV/0!"}]
[22,{"$nulls":12},{"$error":"#DIV/0!"}]
[23,{"$nulls":12},{"$error":"#DIV/0!"}]
[24,{"$nulls":12},{"$error":"#DIV/0!"}]
[25,{"$nulls":12},{"$error":"#DIV/0!"}]
[26,{"$nulls":12},{"$error":"#DIV/0!"}]
[27,{"$nulls":12},{"$error":"#DIV/0!"}]
[28,{"$nulls":12},{"$error":"#DIV/0!"}]
[29,{"$nulls":12},{"$error":"#DIV/0!"}]
[30,{"$nulls":12},{"$error":"#DIV/0!"}]
[null,"СРЕДНИЙ ПОКАЗАТЕЛЬ ПО ГРУППЕ",{"$nulls":11},{"$f":"AVERAGE(N12:N41)","v":{"$error":"#DIV/0!"}}]
[null,"Ф.И.О, должность специалиста(ов)____________________________________________________________________________________________________________________________________________________________________________________________________________________________________"]
[null,"© Автор-составитель Кулекина И.А., СПБ, 2023"]